fUSD/lending_fUSD_20251017
["ID","MTS","AMOUNT","RATE_DAILY","PERIOD"]
[391600218,1760688650370,-500.59716388,0.00024657,2]
[391600219,1760688650381,-227.53167364,0.00024657,2]
[391600220,1760688650941,-282.84025483,0.00024657,2]
[391600221,1760688650952,-525.34115263,0.00024657,2]
[391600222,1760688650962,-500.0,0.00024657,2]
[391600223,1760688650973,-500.0,0.00024657,2]
[391600224,1760688650983,-508.34890236,0.00024657,2]
[391600225,1760688650993,-549.2,0.00024657,2]
[391600226,1760688651003,-298.56397233,0.00024657,2]
[391600227,1760688651024,-201.43602767,0.00024657,2]
[391600228,1760688651035,-501.8273859,0.00024657,2]
[391600229,1760688651044,-157.15486003,0.00024657,2]
[391600230,1760688651957,-500.0,0.00016953,2]
[391600231,1760688651967,-500.0,0.00016953,2]
[391600232,1760688651978,-500.0,0.00016953,2]
[391600233,1760688651988,-500.0,0.00016953,2]
[391600234,1760688651998,-500.0,0.00016953,2]
[391600235,1760688652008,-500.0,0.00016953,2]
[391600236,1760688652019,-500.0,0.00016953,2]
[391600237,1760688652029,-500.0,0.00016953,2]
[391600238,1760688652039,-500.0,0.00016953,2]
[391600239,1760688652049,-500.0,0.00016953,2]
[391600240,1760688652059,-500.0,0.00016953,2]
[391600241,1760688652070,-117.5,0.00016953,2]
[391600242,1760688652111,-382.5,0.00016953,2]
[391600243,1760688652121,-500.0,0.00016953,2]
[391600244,1760688652131,-500.0,0.00016953,2]
[391600245,1760688652140,-500.0,0.00016953,2]
[391600246,1760688652150,-279.83252866,0.00016953,2]
[391600247,1760688652160,-500.0,0.00016953,2]
[391600248,1760688652171,-156.4281847,0.00016953,2]
[391600249,1760688652181,-500.0,0.00016953,2]
[391600250,1760688652192,-500.0,0.00016953,2]
[391600251,1760688652202,-400.95072376,0.00016953,2]
[391600252,1760688652212,-160.45722424,0.00019232,2]
[391600253,1760688652223,-817.39513997,0.00024657,2]
[391600254,1760688652233,-500.0,0.00024657,2]
[391600255,1760688652243,-500.0,0.00024657,2]
[391600256,1760688652253,-500.0,0.00024657,2]
[391600257,1760688652266,-507.31850178,0.00024657,2]
[391600258,1760688652276,-541.72511379,0.00024657,2]
[391600259,1760688652287,-709.25,0.00024657,2]
[391600260,1760688652298,-500.0,0.00024657,2]
[391600261,1760688652310,-501.79394249,0.00024657,2]
[391600262,1760688652320,-1200.12,0.00024657,2]
[391600263,1760688652332,-500.0,0.00024657,2]
[391600264,1760688652342,-612.35631477,0.00024657,2]
[391600265,1760688652353,-500.0,0.00024657,2]
[391600266,1760688652364,-501.00313011,0.00024657,2]
[391600267,1760688652374,-500.0,0.00024657,2]
[391600268,1760688652385,-528.47,0.00024657,2]
[391600269,1760688652395,-500.0,0.00024657,2]
[391600270,1760688652405,-500.0,0.00024657,2]
[391600271,1760688652415,-533.42442626,0.00024657,2]
[391600272,1760688652424,-500.0,0.00024657,2]
[391600273,1760688652435,-500.0,0.00024657,2]
[391600274,1760688652444,-500.0,0.00024657,2]
[391600275,1760688652454,-500.0,0.00024657,2]
[391600276,1760688652463,-751.82,0.00024657,2]
[391600277,1760688652474,-500.0,0.00024657,2]
[391600278,1760688652488,-500.0,0.00024657,2]
[391600279,1760688652498,-500.0,0.00024657,2]
[391600280,1760688652507,-628.23380317,0.00024657,2]
[391600281,1760688652517,-518.81,0.00024657,2]
[391600282,1760688652528,-500.0,0.00024657,2]
[391600283,1760688652538,-500.94702737,0.00024657,2]
[391600284,1760688652550,-500.0,0.00024657,2]
[391600285,1760688652561,-500.0,0.00024657,2]
[391600286,1760688652571,-606.63598544,0.00024657,2]
[391600287,1760688652582,-617.07699254,0.00024657,2]
[391600288,1760688652592,-500.0,0.00024657,2]
[391600289,1760688652602,-500.0,0.00024657,2]
[391600290,1760688652613,-500.27891344,0.00024657,2]
[391600291,1760688652623,-500.0,0.00024657,2]
[391600292,1760688652633,-502.49491789,0.00024657,2]
[391600293,1760688652643,-368.80197528,0.00024657,2]
[391600294,1760688652656,-131.19802472,0.00024657,2]
[391600295,1760688652666,-201.91397514,0.00024657,2]
[391600296,1760688652678,-299.23977008,0.00024657,2]
[391600297,1760688652688,-500.0,0.00024657,2]
[391600298,1760688652697,-403.58022988,0.00024657,2]
[391600299,1760688652710,-96.41977012,0.00024657,2]
[391600300,1760688652720,-587.87403822,0.00024657,2]
[391600301,1760688652729,-500.40241479,0.00024657,2]
[391600302,1760688652739,-500.0,0.00024657,2]
[391600303,1760688652749,-500.41527994,0.00024657,2]
[391600304,1760688652759,-500.0,0.00024657,2]
[391600305,1760688652769,-500.0,0.00024657,2]
[391600306,1760688652779,-367.91908256,0.00024657,2]
[391600307,1760688652788,-500.0,0.00024657,2]
[391600308,1760688652800,-321.15155484,0.00024657,2]
[391600309,1760688652811,-178.84844516,0.00024657,2]
[391600310,1760688652832,-504.56527803,0.00024657,2]
[391600311,1760688652854,-500.48162403,0.00024657,2]
[391600312,1760688652876,-500.0,0.00024657,2]
[391600313,1760688652898,-500.0,0.00024657,2]
[391600314,1760688652922,-500.43991587,0.00024657,2]
[391600315,1760688652944,-500.0,0.00024657,2]
[391600316,1760688652967,-500.0,0.00024657,2]
[391600317,1760688652989,-501.35228293,0.00024657,2]
[391600318,1760688653014,-465.64579024,0.00024657,2]
[391600319,1760688653027,-500.54769845,0.00024657,2]
[391600320,1760688653038,-500.0,0.00024657,2]
[391600321,1760688653051,-500.0,0.00024657,2]
[391600322,1760688653062,-788.33,0.00024657,2]
[391600323,1760688653072,-448.38352706,0.00024657,2]
[391600324,1760688653083,-500.0,0.00024657,2]
[391600325,1760688653093,-500.0,0.00024657,2]
[391600326,1760688653103,-500.0,0.00024657,2]
[391600327,1760688653113,-527.24613522,0.00024657,2]
[391600328,1760688653123,-500.0,0.00024657,2]
[391600329,1760688653138,-500.0,0.00024657,2]
[391600330,1760688653148,-500.0,0.00024657,2]
[391600331,1760688653158,-500.0,0.00024657,2]
[391600332,1760688653168,-1247.5,0.00024657,2]
[391600333,1760688653177,-341.95020619,0.00024657,2]
[391600334,1760688653187,-1247.5,0.00024657,2]
[391600335,1760688653197,-500.49849809,0.00024657,2]
[391600336,1760688653207,-500.0,0.00024657,2]
[391600337,1760688653217,-500.0,0.00024657,2]
[391600338,1760688653227,-399.74212657,0.00024657,2]
[391600339,1760688653237,-500.0,0.00024657,2]
[391600340,1760688653247,-500.0,0.00024657,2]
[391600341,1760688653256,-500.0,0.00024657,2]
[391600342,1760688653266,-500.0,0.00024657,2]
[391600343,1760688653277,-500.0,0.00024657,2]
[391600344,1760688653287,-500.0,0.00024657,2]
[391600345,1760688653297,-500.0,0.00024657,2]
[391600346,1760688653310,-500.0,0.00024657,2]
[391600347,1760688653320,-6557.26,0.00024657,2]
[391600348,1760688653331,-500.0,0.00024657,2]
[391600349,1760688653341,-500.0,0.00024657,2]
[391600350,1760688653351,-500.0,0.00024657,2]
[391600351,1760688653360,-500.0,0.00024657,2]
[391600352,1760688653371,-500.0,0.00024657,2]
[391600353,1760688653380,-500.0,0.00024657,2]
[391600354,1760688653390,-500.0,0.00024657,2]
[391600355,1760688653401,-1737.79,0.00024657,2]
[391600356,1760688653411,-506.19388288,0.00024657,2]
[391600357,1760688653422,-500.83969215,0.00024657,2]
[391600358,1760688653434,-500.0,0.00024657,2]
[391600359,1760688653444,-500.0,0.00024657,2]
[391600360,1760688653454,-521.92763312,0.00024657,2]
[391600361,1760688653464,-500.1473786,0.00024657,2]
[391600362,1760688653474,-511.75951791,0.00024657,2]
[391600363,1760688653485,-500.0,0.00024657,2]
[391600364,1760688653499,-500.0,0.00024657,2]
[391600365,1760688653508,-3428.48,0.00024657,2]
[391600366,1760688653518,-500.0,0.00024657,2]
[391600367,1760688653528,-500.0,0.00024657,2]
[391600368,1760688653539,-500.0,0.00024657,2]
[391600369,1760688653552,-500.0,0.00024657,2]
[391600370,1760688653563,-586.31,0.00024657,2]
[391600371,1760688653572,-500.18102334,0.00024657,2]
[391600372,1760688653583,-158.49234449,0.00024657,2]
[391600373,1760688653593,-500.0,0.00024657,2]
[391600374,1760688653603,-472.76406418,0.00024657,2]
[391600375,1760688653613,-500.81359739,0.00024657,2]
[391600376,1760688653623,-501.15741611,0.00024657,2]
[391600377,1760688653633,-500.0,0.00024657,2]
[391600378,1760688653643,-500.0,0.00024657,2]
[391600379,1760688653653,-500.0,0.00024657,2]
[391600380,1760688653663,-2295.71,0.00024657,2]
[391600381,1760688653674,-660.92,0.00024657,2]
[391600382,1760688653685,-500.0,0.00024657,2]
[391600383,1760688653695,-500.0,0.00024657,2]
[391600384,1760688653705,-500.0,0.00024657,2]
[391600385,1760688653715,-1291.36,0.00024657,2]
[391600386,1760688653725,-1291.36,0.00024657,2]
[391600387,1760688653735,-152.97660371,0.00024657,2]
[391600388,1760688653745,-1291.36,0.00024657,2]
[391600389,1760688653757,-1291.36,0.00024657,2]
[391600390,1760688653766,-500.0,0.00024657,2]
[391600391,1760688653777,-1000.0,0.00024658,2]
[391600392,1760688653787,-561.79813086,0.00024799,2]
[391600393,1760688653800,-150.0,0.00024799,2]
[391600394,1760688653813,-500.0,0.00024799,2]
[391600395,1760688653823,-618.59345277,0.00024799,2]
[391600396,1760688653833,-500.0,0.00024799,2]
[391600397,1760688653843,-500.0,0.00024799,2]
[391600398,1760688653853,-500.0,0.00024799,2]
[391600399,1760688653861,-500.0,0.00024799,2]
[391600400,1760688653872,-500.0,0.00024799,2]
[391600401,1760688653882,-500.0,0.00024799,2]
[391600402,1760688653892,-1197.79,0.00024799,2]
[391600403,1760688653901,-1197.79,0.00024799,2]
[391600404,1760688653911,-500.0,0.00024799,2]
[391600405,1760688653921,-1247.5,0.00024799,2]
[391600406,1760688653931,-500.0,0.00024799,2]
[391600407,1760688653941,-1291.36,0.00024799,2]
[391600408,1760688653950,-1291.36,0.00024799,2]
[391600409,1760688653960,-1291.36,0.00024799,2]
[391600410,1760688653969,-13740.25373465,0.000248,2]
[391600411,1760688653982,-1020.30897125,0.000248,2]
[391600412,1760688653995,-467.74848253,0.000248,2]
[391600413,1760688868664,10000.0,0.00027397,120]
[391600414,1760688880937,10000.0,0.00027397,120]
[391600415,1760688889480,10000.0,0.00027397,120]
[391600416,1760688903350,183.0,0.00025927,120]
[391600534,1760689446126,240.0,8.98e-05,2]
[391600535,1760689446162,139.71,8.98e-05,2]
[391600536,1760689446327,379.71,9.453e-05,2]
[391600537,1760689446524,379.71,9.925e-05,2]
[391600538,1760689446726,379.71,0.00010398,2]
[391600539,1760689446947,379.71,0.00010871,2]
[391600540,1760689447149,379.71,0.00011343,2]
[391600541,1760689452626,379.71,0.00011816,2]
[391600542,1760689452829,379.71,0.00012288,2]
[391600548,1760689623017,-379.71,0.00012761,2]
[391600549,1760689623045,-379.71,0.00013234,2]
[391600550,1760689623072,-2711.7516624,0.000135,2]
[391600551,1760689623098,-501.87,0.00013699,2]
[391600552,1760689623127,-186.98385286,0.00013706,2]
[391600694,1760689831675,-310.32811063,0.000135,2]
[391600695,1760689831687,-192.72614714,0.00013706,2]
[391600696,1760689831698,-269.44917813,0.00014009,2]
[391600697,1760689831715,-379.71,0.00014179,2]
[391600698,1760689831725,-880.14,0.0001434,2]
[391600699,1760689831736,-167.31,0.00014409,2]
[391600700,1760689831746,-379.71,0.00014652,2]
[391600701,1760689831756,-195.0,0.0001485,2]
[391600702,1760689831766,-465.53220002,0.000149,2]
[391600703,1760689831776,-155.85795897,0.000149,2]
[391600704,1760689831787,-160.45722424,0.000149,2]
[391600705,1760689831797,-157.8880602,0.000149,2]
[391600706,1760689831807,-1518.51162105,0.00014924,2]
[391600707,1760689831820,-536.01,0.00014924,2]
[391600708,1760689831841,-137.53869676,0.00014924,2]
[391600709,1760689831851,-1200.0,0.00014963,2]
[391600710,1760689831861,-1200.0,0.00014963,2]
[391600711,1760689831871,-300.0,0.00014963,2]
[391600712,1760689831882,-1000.0,0.00014965,2]
[391600713,1760689831893,-1000.0,0.00014965,2]
[391600714,1760689831904,-219.51330324,0.00014965,2]
[391600715,1760689831972,-250.0,0.00014284,7]
[391600716,1760689831983,-780.48669676,0.00014965,2]
[391600717,1760689831995,-833.01330324,0.00014965,2]
[391600718,1760689832008,-166.98669676,0.00014965,2]
[391600719,1760689832019,-191.871,0.00014965,2]
[391600720,1760689832030,-271.68221324,0.00014965,2]
[391600721,1760689832059,-924.89378676,0.00014965,2]
[391600723,1760689832070,-500.0,0.00014973,2]
[391600725,1760689832081,-422.76465953,0.00014973,2]
[391600726,1760689832092,-188.95327519,0.0001499,2]
[391600727,1760689832104,-242.16840643,0.00014999,2]
[391600728,1760689832115,-500.0,0.00014999,2]
[391600729,1760689832126,-262.89251927,0.00014999,2]
[391600731,1760689832136,-523.64987011,0.00014999,2]
[391600733,1760689832146,-500.0,0.00014999,2]
[391600735,1760689832158,-500.0,0.00014999,2]
[391600737,1760689832168,-380.61527957,0.00014999,2]
[391600740,1760689832178,-500.0,0.00014999,2]
[391600743,1760689832188,-500.0,0.00014999,2]
[391600746,1760689832198,-500.0,0.00014999,2]
[391600749,1760689832215,-500.0,0.00014999,2]
[391600752,1760689832226,-425.25755305,0.00014999,2]
[391600755,1760689832237,-13659.30465009,0.00015,2]
[391600758,1760689832250,-10519.4088,0.00015,2]
[391600763,1760689832273,-525.888,0.00015,2]
[391600767,1760689832286,-1424.56336101,0.00015,2]
[391600770,1760689832298,-531.30000003,0.00015,2]
[391600886,1760689837611,-523.6,0.00015,2]
[391600887,1760689837624,-1476.42,0.00015,2]
[391600888,1760689837636,-538.88523328,0.00015,2]
[391600889,1760689837648,-43861.3365691,0.00015,2]
[391600890,1760689837723,-1755.16849352,0.00015,2]
[391600891,1760689837735,-2345.74395638,0.00015,2]
[391600892,1760689837745,-2395.08990518,0.00015,2]
[391600893,1760689837758,-1476.06063898,0.00015,2]
[391600894,1760689837771,-4240.90975994,0.00015,2]
[391600895,1760689837783,-3180.0,0.00015,2]
[391600896,1760689837810,-1000.0,0.00015,2]
[391600897,1760689837823,-3059003.19312929,0.00015,2]
[391600898,1760689837834,-2101.98026596,0.00015,2]
[391600899,1760689837854,-351.88118535,0.00015,2]
[391600900,1760689837866,-3059.57601337,0.00015,2]
[391600901,1760689837878,-1000.18778537,0.00015,2]
[391600903,1760689837895,-769.11945013,0.00015,2]
[391601106,1760689839657,-10193.4218982,0.00015,2]
[391601113,1760689839711,-1472.8051814,0.00015,2]
[391601171,1760689840359,-431.96,0.00015,2]
[391601183,1760689840469,-227986.13945437,0.00015,2]
[391601186,1760689840483,-1049.0,0.00015,2]
[391601188,1760689840495,-923579.02425701,0.00015,2]
[391601190,1760689840505,-3134881.27747855,0.00015,2]
[391601193,1760689840521,-12073.8364,0.00015,2]
[391601269,1760689842859,-318.08691072,0.00015,2]
[391601270,1760689842915,-357.35700004,0.00015,2]
[391601271,1760689842972,-290345.45353823,0.00015,2]
[391601272,1760689842982,-1687.0,0.00015031,2]
[391601273,1760689842993,-151.0,0.00015034,2]
[391601274,1760689843003,-151.0,0.00015035,2]
[391601275,1760689843013,-151.0,0.00015036,2]
[391601276,1760689843023,-151.0,0.00015042,2]
[391601277,1760689843033,-971.0,0.00015061,2]
[391601278,1760689843043,-1380.0,0.00015091,2]
[391601279,1760689843056,-182.0,0.00015121,2]
[391601280,1760689843065,-379.71,0.00015124,2]
[391601281,1760689843076,-669.0,0.00015151,2]
[391601283,1760689843085,-379.71,0.00015597,2]
[391601285,1760689843096,-413.0,0.00015962,2]
[391601287,1760689843105,-809.0,0.00015994,2]
[391601289,1760689843115,-2192.06031778,0.00015994,2]
[391601291,1760689843125,-1779.0,0.00016026,2]
[391601292,1760689843135,-496.0,0.00016057,2]
[391601293,1760689843146,-379.71,0.0001607,2]
[391601294,1760689843156,-870.0,0.00016089,2]
[391601295,1760689843167,-558.0,0.00016121,2]
[391601296,1760689843176,-1090.0,0.00016153,2]
[391601297,1760689843186,-453.0,0.00016185,2]
[391601298,1760689843196,-6172.92175157,0.000162,5]
[391601299,1760689843207,-384.0,0.00016377,2]
[391601300,1760689843220,-162.73,0.0001644,2]
[391601301,1760689843230,-1043.0,0.00016459,2]
[391601302,1760689843239,-379.71,0.00016542,2]
[391601304,1760689843249,-379.71,0.00017015,2]
[391601305,1760689843259,-840.28439236,0.00017065,2]
[391601307,1760689843280,-1351.77592542,0.00017065,2]
[391601309,1760689843291,-379.71,0.00017487,2]
[391601311,1760689843300,-160.45722424,0.00017588,2]
[391601313,1760689843310,-465.53219997,0.00017734,2]
[391601314,1760689843320,-270.99346185,0.00017838,2]
[391601315,1760689843330,-9618.76314753,0.000179,2]
[391601316,1760689843342,-60199.89507605,0.000179,2]
[391601317,1760689843352,-379.71,0.0001796,2]
[391601318,1760689843362,-1208.73827437,0.00018,2]
[391601319,1760689843372,-7150.78834501,0.00018,2]
[391601320,1760689843382,-1252.42,0.00018028,2]
[391601321,1760689843391,-1591.13,0.00018061,2]
[391601322,1760689843407,-155.23,0.00018082,2]
[391601323,1760689843417,-2192.06031778,0.00018135,2]
[391601324,1760689843427,-155.85795895,0.00018207,2]
[391601325,1760689843436,-151.0,0.00018586,2]
[391601326,1760689843446,-693.3919763,0.00018586,2]
[391601327,1760689843456,-9552.16786547,0.00018586,2]
[391601328,1760689843472,-277.35679052,0.00018586,2]
[391601329,1760689843485,-9905.5980765,0.00018641,2]
[391601330,1760689843495,-10272.10520533,0.00018696,2]
[391601331,1760689843505,-373.88211371,0.00018751,2]
[391601332,1760689843530,-1089.70160406,0.00018751,2]
[391601333,1760689843541,-691.038083,0.00018751,2]
[391601354,1760689845697,-560.46621204,0.00018751,2]
[391601359,1760689845754,-7908.93417717,0.00018751,2]
[391601360,1760689845880,-206.88771,0.00014925,2]
[391601361,1760689845890,-28.15090794,0.00018751,2]
[391601362,1760689845902,-155.23,0.0001876,2]
[391601363,1760689845912,-151.29,0.000188,2]
[391601364,1760689845922,-151.29,0.000188,2]
[391601365,1760689845932,-151.29,0.000188,2]
[391601366,1760689845942,-151.29,0.000188,2]
[391601367,1760689845951,-151.29,0.000188,2]
[391601368,1760689845961,-151.29,0.000188,2]
[391601369,1760689845976,-11046.30350255,0.00018806,2]
[391601371,1760689845986,-970.1478,0.00018855,2]
[391601373,1760689845996,-2000.0,0.00018855,2]
[391601375,1760689846007,-11455.01673214,0.00018861,2]
[391601376,1760689846017,-200.0,0.00018893,2]
[391601377,1760689846027,-322.6107,0.00018893,2]
[391601378,1760689846037,-500.0,0.00018893,2]
[391601379,1760689846047,-500.0,0.00018893,2]
[391601380,1760689846061,-500.0,0.00018893,2]
[391601381,1760689846070,-500.0,0.00018893,2]
[391601382,1760689846080,-500.0,0.00018893,2]
[391601384,1760689846089,-500.0,0.00018893,2]
[391601386,1760689846100,-1000.0,0.00018893,2]
[391601388,1760689846109,-500.0,0.00018893,2]
[391601390,1760689846119,-1000.0,0.00018893,2]
[391601391,1760689846128,-500.0,0.00018893,2]
[391601392,1760689846138,-1000.0,0.00018893,2]
[391601393,1760689846149,-500.0,0.00018893,2]
[391601394,1760689846158,-1000.0,0.00018893,2]
[391601395,1760689846167,-500.0,0.00018893,2]
[391601396,1760689846177,-1000.0,0.00018893,2]
[391601397,1760689846187,-500.0,0.00018893,2]
[391601398,1760689846197,-1000.0,0.00018893,2]
[391601399,1760689846207,-1000.0,0.00018893,2]
[391601401,1760689846219,-1000.0,0.00018893,2]
[391601403,1760689846228,-3000.0,0.00018893,2]
[391601405,1760689846238,-1000.0,0.00018893,2]
[391601407,1760689846248,-3000.0,0.00018893,2]
[391601409,1760689846258,-1000.0,0.00018893,2]
[391601410,1760689846270,-343.15392496,0.00018893,2]
[391601411,1760689846280,-1000.0,0.00018893,2]
[391601412,1760689846290,-337.04050925,0.00018893,2]
[391601413,1760689846300,-500.0,0.00018893,2]
[391601414,1760689846311,-721.12765535,0.00018893,2]
[391601415,1760689846321,-250.0,0.00018893,2]
[391601416,1760689846330,-500.0,0.00018893,2]
[391601417,1760689846340,-250.0,0.00018893,2]
[391601418,1760689846349,-500.0,0.00018893,2]
[391601419,1760689846359,-250.0,0.00018893,2]
[391601420,1760689846368,-500.0,0.00018893,2]
[391601421,1760689846378,-250.0,0.00018893,2]
[391601422,1760689846387,-500.0,0.00018893,2]
[391601423,1760689846397,-500.0,0.00018893,2]
[391601424,1760689846407,-250.0,0.00018893,2]
[391601425,1760689846417,-500.0,0.00018893,2]
[391601426,1760689846426,-250.0,0.00018893,2]
[391601427,1760689846435,-1000.0,0.00018893,2]
[391601428,1760689846445,-151.0,0.00018893,2]
[391601429,1760689846455,-500.0,0.00018893,2]
[391601430,1760689846468,-250.0,0.00018893,2]
[391601431,1760689846478,-1000.0,0.00018893,2]
[391601432,1760689846487,-151.0,0.00018893,2]
[391601433,1760689846497,-500.0,0.00018893,2]
[391601434,1760689846506,-250.0,0.00018893,2]
[391601435,1760689846516,-1000.0,0.00018893,2]
[391601436,1760689846525,-151.0,0.00018893,2]
[391601437,1760689846535,-500.0,0.00018893,2]
[391601438,1760689846545,-250.0,0.00018893,2]
[391601439,1760689846555,-1000.0,0.00018893,2]
[391601440,1760689846564,-151.0,0.00018893,2]
[391601441,1760689846574,-250.0,0.00018893,2]
[391601442,1760689846585,-500.0,0.00018893,2]
[391601443,1760689846594,-1000.0,0.00018893,2]
[391601444,1760689846604,-151.0,0.00018893,2]
[391601445,1760689846614,-250.0,0.00018893,2]
[391601446,1760689846623,-1000.0,0.00018893,2]
[391601447,1760689846634,-151.0,0.00018893,2]
[391601448,1760689846643,-1000.0,0.00018893,2]
[391601449,1760689846653,-1000.0,0.00018893,2]
[391601450,1760689846663,-151.0,0.00018893,2]
[391601451,1760689846672,-1000.0,0.00018893,2]
[391601452,1760689846682,-1000.0,0.00018893,2]
[391601453,1760689846691,-151.0,0.00018893,2]
[391601454,1760689846701,-1000.0,0.00018893,2]
[391601455,1760689846711,-1000.0,0.00018893,2]
[391601456,1760689846723,-151.0,0.00018893,2]
[391601457,1760689846734,-1000.0,0.00018893,2]
[391601458,1760689846744,-1000.0,0.00018893,2]
[391601459,1760689846754,-151.0,0.00018893,2]
[391601460,1760689846764,-1000.0,0.00018893,2]
[391601461,1760689846774,-1000.0,0.00018893,2]
[391601462,1760689846784,-151.0,0.00018893,2]
[391601463,1760689846793,-1000.0,0.00018893,2]
[391601464,1760689846803,-151.0,0.00018893,2]
[391601465,1760689846812,-1000.0,0.00018893,2]
[391601466,1760689846822,-151.0,0.00018893,2]
[391601467,1760689846831,-1000.0,0.00018893,2]
[391601468,1760689846840,-151.0,0.00018893,2]
[391601469,1760689846851,-1000.0,0.00018893,2]
[391601470,1760689846861,-151.0,0.00018893,2]
[391601471,1760689846871,-1000.0,0.00018893,2]
[391601472,1760689846881,-151.0,0.00018893,2]
[391601473,1760689846891,-1000.0,0.00018893,2]
[391601474,1760689846901,-151.0,0.00018893,2]
[391601475,1760689846911,-151.0,0.00018893,2]
[391601476,1760689846921,-250.0,0.00018893,2]
[391601477,1760689846931,-151.0,0.00018893,2]
[391601478,1760689846940,-250.0,0.00018893,2]
[391601479,1760689846950,-151.0,0.00018893,2]
[391601480,1760689846960,-151.0,0.00018893,2]
[391601481,1760689846973,-250.0,0.00018893,2]
[391601482,1760689846983,-151.0,0.00018893,2]
[391601483,1760689846992,-151.0,0.00018893,2]
[391601484,1760689847003,-250.0,0.00018893,2]
[391601485,1760689847013,-151.0,0.00018893,2]
[391601486,1760689847023,-151.0,0.00018893,2]
[391601487,1760689847033,-250.0,0.00018893,2]
[391601488,1760689847043,-151.0,0.00018893,2]
[391601489,1760689847054,-151.0,0.00018893,2]
[391601490,1760689847065,-250.0,0.00018893,2]
[391601491,1760689847075,-151.0,0.00018893,2]
[391601492,1760689847085,-151.0,0.00018893,2]
[391601493,1760689847095,-250.0,0.00018893,2]
[391601494,1760689847105,-151.0,0.00018893,2]
[391601495,1760689847115,-151.0,0.00018893,2]
[391601496,1760689847125,-250.0,0.00018893,2]
[391601497,1760689847135,-151.0,0.00018893,2]
[391601498,1760689847146,-151.0,0.00018893,2]
[391601499,1760689847155,-250.0,0.00018893,2]
[391601500,1760689847165,-151.0,0.00018893,2]
[391601501,1760689847175,-151.0,0.00018893,2]
[391601502,1760689847186,-151.0,0.00018893,2]
[391601503,1760689847196,-250.0,0.00018893,2]
[391601504,1760689847208,-151.0,0.00018893,2]
[391601505,1760689847222,-250.0,0.00018893,2]
[391601506,1760689847232,-151.0,0.00018893,2]
[391601507,1760689847242,-250.0,0.00018893,2]
[391601508,1760689847252,-250.0,0.00018893,2]
[391601509,1760689847262,-250.0,0.00018893,2]
[391601510,1760689847272,-250.0,0.00018893,2]
[391601511,1760689847282,-250.0,0.00018893,2]
[391601512,1760689847292,-250.0,0.00018893,2]
[391601513,1760689847302,-250.0,0.00018893,2]
[391601514,1760689847313,-250.0,0.00018893,2]
[391601515,1760689847322,-250.0,0.00018893,2]
[391601516,1760689847332,-250.0,0.00018893,2]
[391601517,1760689847341,-250.0,0.00018893,2]
[391601518,1760689847351,-150.0,0.00018893,2]
[391601520,1760689847360,-264.33579966,0.00018893,2]
[391601521,1760689847370,-500.0,0.00018893,2]
[391601522,1760689847381,-500.0,0.00018893,2]
[391601523,1760689847391,-540.0,0.00018893,2]
[391601524,1760689847401,-150.0,0.00018893,2]
[391601525,1760689847411,-150.0,0.00018893,2]
[391601526,1760689847421,-150.0,0.00018893,2]
[391601527,1760689847431,-150.0,0.00018893,2]
[391601528,1760689847441,-150.0,0.00018893,2]
[391601529,1760689847451,-245.30439531,0.00018893,2]